[Event "GrandPrix_30.05"]
[Site "Chess.com"]
[Date "2020.05.30"]
[Round "4"]
[White "AlexPapasimakopoulos"]
[Black "MirMan90"]
[Result "0-1"]
[WhiteElo "2242"]
[BlackElo "2235"]
[TimeControl "600+2"]
[EndTime "9:41:36 PDT"]
[Termination "MirMan90 won by resignation"]

1. d4 {[%clk 0:10:01.9]} 1... Nf6 {[%clk 0:10:00.5]} 2. c4 {[%clk 0:10:03]} 2...
g6 {[%clk 0:10:01.8]} 3. Nc3 {[%clk 0:10:04.6]} 3... d5 {[%clk 0:10:02.5]} 4.
Nf3 {[%clk 0:10:06.3]} 4... Bg7 {[%clk 0:10:03.3]} 5. Qb3 {[%clk 0:10:08]} 5...
dxc4 {[%clk 0:09:59.3]} 6. Qxc4 {[%clk 0:10:09.9]} 6... a6 {[%clk 0:10:00.4]} 7.
e4 {[%clk 0:10:11.2]} 7... b5 {[%clk 0:10:00]} 8. Qb3 {[%clk 0:10:12.8]} 8... c5
{[%clk 0:10:01]} 9. dxc5 {[%clk 0:10:11.1]} 9... Be6 {[%clk 0:09:38.7]} 10. Qc2
{[%clk 0:10:07.4]} 10... Nbd7 {[%clk 0:09:07.5]} 11. c6 {[%clk 0:10:07.6]} 11...
Nb6 {[%clk 0:08:10.9]} 12. Be3 {[%clk 0:10:05.5]} 12... O-O {[%clk 0:07:25]} 13.
Be2 {[%clk 0:09:17.1]} 13... Qc7 {[%clk 0:07:07]} 14. Nd4 {[%clk 0:09:13.1]}
14... Bc4 {[%clk 0:06:57.3]} 15. Bxc4 {[%clk 0:09:11.6]} 15... Nxc4 {[%clk
0:06:57.2]} 16. Nd5 {[%clk 0:09:13.2]} 16... Nxd5 {[%clk 0:06:55.3]} 17. exd5
{[%clk 0:09:15.1]} 17... Qe5 {[%clk 0:06:22.1]} 18. Nf3 {[%clk 0:08:50.2]} 18...
Qxd5 {[%clk 0:06:14.4]} 19. O-O {[%clk 0:08:47.3]} 19... Rfc8 {[%clk 0:05:59.6]}
20. Rac1 {[%clk 0:08:40.6]} 20... Bxb2 {[%clk 0:05:53.5]} 21. Rfd1 {[%clk
0:08:39.9]} 21... Qxc6 {[%clk 0:05:38.4]} 22. Rb1 {[%clk 0:08:38.8]} 22... Bg7
{[%clk 0:05:31.9]} 23. Qe2 {[%clk 0:08:31.8]} 23... Nxe3 {[%clk 0:05:29.8]} 24.
Qxe3 {[%clk 0:08:33.7]} 24... Bf6 {[%clk 0:05:22.9]} 25. h4 {[%clk 0:08:32.5]}
25... Qe6 {[%clk 0:05:09.4]} 26. Qxe6 {[%clk 0:08:27.9]} 26... fxe6 {[%clk
0:05:11.3]} 27. Rd2 {[%clk 0:08:27.1]} 27... Rd8 {[%clk 0:05:09.2]} 28. Re2
{[%clk 0:08:27.8]} 28... Kf7 {[%clk 0:05:05.8]} 29. g4 {[%clk 0:08:29.5]} 29...
Rac8 {[%clk 0:04:58]} 30. Rb4 {[%clk 0:08:30.1]} 30... Rc4 {[%clk 0:04:53.8]}
31. Re4 {[%clk 0:08:31.2]} 31... Rxb4 {[%clk 0:04:54.2]} 32. Rxb4 {[%clk
0:08:33.1]} 32... Rd1+ {[%clk 0:04:51.5]} 33. Kg2 {[%clk 0:08:33.8]} 33... Ra1
{[%clk 0:04:52.8]} 34. Rf4 {[%clk 0:08:33.2]} 34... Ke8 {[%clk 0:04:50.1]} 35.
g5 {[%clk 0:08:28.8]} 35... Bg7 {[%clk 0:04:48.5]} 36. Re4 {[%clk 0:08:30.3]}
36... Rxa2 {[%clk 0:04:39.8]} 37. Rxe6 {[%clk 0:08:31.4]} 37... b4 {[%clk
0:04:39.7]} 38. Rb6 {[%clk 0:08:32.4]} 38... a5 {[%clk 0:04:39.5]} 39. Ne1
{[%clk 0:08:32.5]} 39... Rxf2+ {[%clk 0:04:37]} 0-1

[Event "GrandPrix_30.05"]
[Site "Chess.com"]
[Date "2020.05.30"]
[Round "4"]
[White "abraham1982"]
[Black "grzechu96"]
[Result "0-1"]
[WhiteElo "2164"]
[BlackElo "2412"]
[TimeControl "600+2"]
[EndTime "9:41:45 PDT"]
[Termination "grzechu96 won by resignation"]

1. e4 {[%clk 0:09:56.2]} 1... c5 {[%clk 0:09:58.7]} 2. Nf3 {[%clk 0:09:51.1]}
2... d6 {[%clk 0:09:59.8]} 3. c3 {[%clk 0:09:39.7]} 3... Nf6 {[%clk 0:09:58.4]}
4. h3 {[%clk 0:09:34.2]} 4... Nc6 {[%clk 0:09:54.4]} 5. d4 {[%clk 0:09:32.8]}
5... cxd4 {[%clk 0:09:05.8]} 6. cxd4 {[%clk 0:09:25.6]} 6... Nxe4 {[%clk
0:08:57.4]} 7. d5 {[%clk 0:09:23.6]} 7... Qa5+ {[%clk 0:08:58.3]} 8. Nc3 {[%clk
0:09:21.1]} 8... Nxc3 {[%clk 0:08:24.6]} 9. bxc3 {[%clk 0:09:19.4]} 9... Nb8
{[%clk 0:08:23.5]} 10. Be2 {[%clk 0:09:15.9]} 10... g6 {[%clk 0:08:14.6]} 11.
Qd4 {[%clk 0:09:10.7]} 11... f6 {[%clk 0:07:57.8]} 12. O-O {[%clk 0:09:08.7]}
12... Bg7 {[%clk 0:07:58.7]} 13. c4 {[%clk 0:08:45.7]} 13... O-O {[%clk
0:07:52.4]} 14. Bb2 {[%clk 0:08:44.1]} 14... Nd7 {[%clk 0:07:53.2]} 15. Nd2
{[%clk 0:08:27.2]} 15... Nc5 {[%clk 0:07:25.7]} 16. Nb3 {[%clk 0:08:22.4]} 16...
Qc7 {[%clk 0:07:23.7]} 17. Rfe1 {[%clk 0:08:19.8]} 17... b6 {[%clk 0:07:20]} 18.
Bg4 {[%clk 0:08:10.1]} 18... Na4 {[%clk 0:07:13.8]} 19. Rac1 {[%clk 0:07:53.9]}
19... Nxb2 {[%clk 0:07:12.3]} 20. Qxb2 {[%clk 0:07:53.5]} 20... f5 {[%clk
0:07:11.1]} 21. Qe2 {[%clk 0:07:41.4]} 21... fxg4 {[%clk 0:07:12.2]} 22. hxg4
{[%clk 0:07:41.3]} 22... Ba6 {[%clk 0:06:56.5]} 23. Qxe7 {[%clk 0:07:38.2]}
23... Qxe7 {[%clk 0:06:53.1]} 24. Rxe7 {[%clk 0:07:38.8]} 24... Rf7 {[%clk
0:06:54.1]} 25. Re6 {[%clk 0:07:37.3]} 25... Rd8 {[%clk 0:06:37]} 26. g3 {[%clk
0:07:30.4]} 26... Rc7 {[%clk 0:06:26.3]} 27. Nd2 {[%clk 0:07:29]} 27... b5
{[%clk 0:05:37.7]} 28. c5 {[%clk 0:07:25.9]} 28... Bc8 {[%clk 0:05:38.8]} 29.
Re4 {[%clk 0:06:54.1]} 29... Rxc5 {[%clk 0:05:26.8]} 0-1

[Event "GrandPrix_30.05"]
[Site "Chess.com"]
[Date "2020.05.30"]
[Round "4"]
[White "Forking_U"]
[Black "Tokarev_Sergey"]
[Result "1-0"]
[WhiteElo "2109"]
[BlackElo "1981"]
[TimeControl "600+2"]
[EndTime "9:41:46 PDT"]
[Termination "Forking_U won by checkmate"]

1. e4 {[%clk 0:10:01.9]} 1... e6 {[%clk 0:10:00.6]} 2. d4 {[%clk 0:10:02.6]}
2... d5 {[%clk 0:10:02.5]} 3. Nd2 {[%clk 0:10:04]} 3... c5 {[%clk 0:10:02.7]} 4.
Ngf3 {[%clk 0:10:05]} 4... cxd4 {[%clk 0:10:02.9]} 5. exd5 {[%clk 0:10:05.1]}
5... exd5 {[%clk 0:10:03.5]} 6. Nxd4 {[%clk 0:10:01.1]} 6... Nc6 {[%clk
0:10:04.3]} 7. N2f3 {[%clk 0:09:51.5]} 7... h6 {[%clk 0:10:03.3]} 8. Bb5 {[%clk
0:09:04.6]} 8... Bd7 {[%clk 0:09:44.5]} 9. O-O {[%clk 0:09:05.6]} 9... Nf6
{[%clk 0:09:43.8]} 10. Re1+ {[%clk 0:08:25]} 10... Be7 {[%clk 0:09:24.6]} 11.
Bxc6 {[%clk 0:06:14.7]} 11... bxc6 {[%clk 0:09:26.5]} 12. Ne5 {[%clk 0:06:15.8]}
12... Rc8 {[%clk 0:08:58]} 13. Qf3 {[%clk 0:05:40.2]} 13... O-O {[%clk
0:08:48.2]} 14. Nxd7 {[%clk 0:04:55.7]} 14... Qxd7 {[%clk 0:08:43.8]} 15. Bxh6
{[%clk 0:04:31.6]} 15... gxh6 {[%clk 0:08:22]} 16. Nf5 {[%clk 0:04:15.9]} 16...
Ne4 {[%clk 0:07:32.3]} 17. Qg4+ {[%clk 0:04:01.5]} 17... Kh7 {[%clk 0:07:28]}
18. Qg7# {[%clk 0:03:54.7]} 1-0

[Event "GrandPrix_30.05"]
[Site "Chess.com"]
[Date "2020.05.30"]
[Round "4"]
[White "TimofeevAr"]
[Black "Fandorine"]
[Result "1/2-1/2"]
[WhiteElo "2665"]
[BlackElo "2557"]
[TimeControl "600+2"]
[EndTime "9:42:17 PDT"]
[Termination "Game drawn by agreement"]

1. c4 {[%clk 0:10:00.9]} 1... g6 {[%clk 0:09:56.7]} 2. g3 {[%clk 0:09:58]} 2...
Bg7 {[%clk 0:09:57.6]} 3. Bg2 {[%clk 0:09:59.2]} 3... e5 {[%clk 0:09:58.1]} 4.
Nc3 {[%clk 0:09:58.7]} 4... Nc6 {[%clk 0:09:59.5]} 5. e3 {[%clk 0:09:58.7]} 5...
Nge7 {[%clk 0:09:51.3]} 6. d3 {[%clk 0:09:57]} 6... d6 {[%clk 0:09:44.1]} 7.
Nge2 {[%clk 0:09:47.9]} 7... h5 {[%clk 0:09:36.6]} 8. h4 {[%clk 0:09:47.5]} 8...
Bg4 {[%clk 0:09:33.7]} 9. Qd2 {[%clk 0:09:23.7]} 9... Qd7 {[%clk 0:09:31.8]} 10.
b3 {[%clk 0:09:22.6]} 10... a5 {[%clk 0:09:16.1]} 11. Bb2 {[%clk 0:09:20.5]}
11... O-O {[%clk 0:09:12.8]} 12. Ne4 {[%clk 0:08:58.2]} 12... b6 {[%clk
0:08:50.8]} 13. Ng5 {[%clk 0:08:39.6]} 13... Qe8 {[%clk 0:08:10]} 14. O-O {[%clk
0:08:35.8]} 14... Rd8 {[%clk 0:08:09.1]} 15. Nc3 {[%clk 0:08:27]} 15... f6
{[%clk 0:07:53.4]} 16. Nf3 {[%clk 0:08:18.6]} 16... Qd7 {[%clk 0:07:14.7]} 17.
d4 {[%clk 0:08:10.5]} 17... Bh3 {[%clk 0:07:11.5]} 18. Rad1 {[%clk 0:08:04.5]}
18... Bxg2 {[%clk 0:06:41.6]} 19. Kxg2 {[%clk 0:08:03.8]} 19... Qe8 {[%clk
0:06:43.2]} 20. Rfe1 {[%clk 0:07:39.1]} 20... Qf7 {[%clk 0:05:52.6]} 21. Qe2
{[%clk 0:07:09.6]} 21... Rfe8 {[%clk 0:05:36.1]} 22. dxe5 {[%clk 0:06:50.8]}
22... dxe5 {[%clk 0:05:25.8]} 23. Rxd8 {[%clk 0:06:46.1]} 23... Rxd8 {[%clk
0:05:27.7]} 24. Rd1 {[%clk 0:06:47.4]} 24... Qe8 {[%clk 0:05:27.4]} 1/2-1/2

[Event "GrandPrix_30.05"]
[Site "Chess.com"]
[Date "2020.05.30"]
[Round "4"]
[White "Magicmaster17"]
[Black "eristeski7"]
[Result "1-0"]
[WhiteElo "2382"]
[BlackElo "2154"]
[TimeControl "600+2"]
[EndTime "9:42:22 PDT"]
[Termination "Magicmaster17 won by resignation"]

1. Nf3 {[%clk 0:08:31.4]} 1... Nf6 {[%clk 0:09:57.7]} 2. c4 {[%clk 0:08:31.8]}
2... g6 {[%clk 0:09:57.6]} 3. Nc3 {[%clk 0:08:32]} 3... Bg7 {[%clk 0:09:58]} 4.
g3 {[%clk 0:08:25.7]} 4... O-O {[%clk 0:09:58.3]} 5. Bg2 {[%clk 0:08:27]} 5...
d6 {[%clk 0:09:57.9]} 6. d4 {[%clk 0:08:26.5]} 6... Nc6 {[%clk 0:09:54.5]} 7.
O-O {[%clk 0:08:26.9]} 7... e5 {[%clk 0:09:55.3]} 8. dxe5 {[%clk 0:08:12.2]}
8... dxe5 {[%clk 0:09:57.2]} 9. Bg5 {[%clk 0:08:13.4]} 9... Be6 {[%clk
0:09:55.5]} 10. Qc1 {[%clk 0:08:13.5]} 10... Bxc4 {[%clk 0:08:17.1]} 11. Rd1
{[%clk 0:08:13]} 11... Qe7 {[%clk 0:08:05.6]} 12. Nd2 {[%clk 0:07:19]} 12... Be6
{[%clk 0:07:37.4]} 13. Bxc6 {[%clk 0:07:18.7]} 13... bxc6 {[%clk 0:07:35.7]} 14.
Nde4 {[%clk 0:07:19]} 14... Rfd8 {[%clk 0:07:17.7]} 15. Qe3 {[%clk 0:07:18.5]}
15... Bf5 {[%clk 0:05:51.8]} 16. Qf3 {[%clk 0:06:49.3]} 16... h6 {[%clk
0:04:39.6]} 17. Bxf6 {[%clk 0:06:40.3]} 17... Bxf6 {[%clk 0:04:38.6]} 18. Nxf6+
{[%clk 0:06:41.1]} 18... Qxf6 {[%clk 0:04:38.1]} 19. e4 {[%clk 0:06:42.2]} 19...
Rd4 {[%clk 0:04:20]} 20. exf5 {[%clk 0:06:39.9]} 20... c5 {[%clk 0:04:20.2]} 1-0

[Event "GrandPrix_30.05"]
[Site "Chess.com"]
[Date "2020.05.30"]
[Round "4"]
[White "szachuspl"]
[Black "Happy1712Drummer"]
[Result "1-0"]
[WhiteElo "2358"]
[BlackElo "2173"]
[TimeControl "600+2"]
[EndTime "9:42:38 PDT"]
[Termination "szachuspl won by resignation"]

1. d4 {[%clk 0:10:01.9]} 1... e6 {[%clk 0:09:56.6]} 2. c4 {[%clk 0:10:02.4]}
2... Nf6 {[%clk 0:09:54.9]} 3. Nf3 {[%clk 0:10:01.4]} 3... d5 {[%clk 0:09:55.4]}
4. Nc3 {[%clk 0:10:01.9]} 4... c6 {[%clk 0:09:54]} 5. Bg5 {[%clk 0:09:56.4]}
5... h6 {[%clk 0:09:52.4]} 6. Bxf6 {[%clk 0:09:55.1]} 6... Qxf6 {[%clk
0:09:51.4]} 7. e3 {[%clk 0:09:56.8]} 7... g6 {[%clk 0:09:49.5]} 8. Bd3 {[%clk
0:09:57.4]} 8... Bg7 {[%clk 0:09:43.1]} 9. O-O {[%clk 0:09:58]} 9... O-O {[%clk
0:09:42.7]} 10. e4 {[%clk 0:09:59.2]} 10... dxc4 {[%clk 0:09:42.2]} 11. Bxc4
{[%clk 0:09:57]} 11... Qe7 {[%clk 0:09:34.7]} 12. e5 {[%clk 0:09:56]} 12... b6
{[%clk 0:09:21.5]} 13. Re1 {[%clk 0:09:47.8]} 13... Rd8 {[%clk 0:09:19.9]} 14.
Qe2 {[%clk 0:09:46.4]} 14... Nd7 {[%clk 0:09:18.7]} 15. h4 {[%clk 0:09:34.6]}
15... Nf8 {[%clk 0:09:13.1]} 16. h5 {[%clk 0:09:24.7]} 16... gxh5 {[%clk
0:08:53.2]} 17. Rad1 {[%clk 0:09:22.1]} 17... Bb7 {[%clk 0:08:51.6]} 18. Ne4
{[%clk 0:09:12.6]} 18... c5 {[%clk 0:08:49.4]} 19. Nd6 {[%clk 0:09:01.1]} 19...
Rxd6 {[%clk 0:08:27.5]} 20. exd6 {[%clk 0:09:01.6]} 20... Qxd6 {[%clk 0:08:29]}
21. dxc5 {[%clk 0:08:38.1]} 21... Qxc5 {[%clk 0:08:29.5]} 22. Bd3 {[%clk
0:08:24.2]} 22... Qb4 {[%clk 0:07:33.6]} 23. b3 {[%clk 0:07:49]} 23... Bc3
{[%clk 0:07:10.7]} 24. Rf1 {[%clk 0:07:49.6]} 24... Rc8 {[%clk 0:07:08.6]} 25.
Ne5 {[%clk 0:07:32.7]} 25... Rc5 {[%clk 0:07:00.7]} 26. Nc4 {[%clk 0:07:26.4]}
26... Rg5 {[%clk 0:06:51.7]} 27. Be4 {[%clk 0:07:26.8]} 27... Ba6 {[%clk
0:06:42.2]} 28. Rd8 {[%clk 0:07:04.1]} 28... Bf6 {[%clk 0:06:36.8]} 29. Rd2
{[%clk 0:06:37]} 29... Qc5 {[%clk 0:06:28.7]} 30. Rfd1 {[%clk 0:06:28]} 30... h4
{[%clk 0:06:23.8]} 31. Qf3 {[%clk 0:06:14.1]} 31... Kg7 {[%clk 0:06:09]} 32. Nd6
{[%clk 0:06:10.6]} 32... Be5 {[%clk 0:05:46.3]} 33. Qxf7+ {[%clk 0:06:09.1]}
33... Kh8 {[%clk 0:05:43.3]} 34. Qxf8+ {[%clk 0:06:09.7]} 1-0

[Event "GrandPrix_30.05"]
[Site "Chess.com"]
[Date "2020.05.30"]
[Round "4"]
[White "Alex_Molchanov"]
[Black "kotmizer"]
[Result "0-1"]
[WhiteElo "2031"]
[BlackElo "2231"]
[TimeControl "600+2"]
[EndTime "9:42:52 PDT"]
[Termination "kotmizer won by resignation"]

1. c4 {[%clk 0:10:01.9]} 1... c5 {[%clk 0:09:59.1]} 2. g3 {[%clk 0:10:02]} 2...
Nf6 {[%clk 0:09:59.6]} 3. Bg2 {[%clk 0:10:03.6]} 3... d5 {[%clk 0:10:01]} 4.
cxd5 {[%clk 0:10:03.7]} 4... Nxd5 {[%clk 0:10:02.5]} 5. Nc3 {[%clk 0:09:59.6]}
5... Nc7 {[%clk 0:10:02.9]} 6. Qa4+ {[%clk 0:09:47.2]} 6... Bd7 {[%clk
0:10:01.7]} 7. Qb3 {[%clk 0:09:48.3]} 7... Nc6 {[%clk 0:10:02]} 8. Qxb7 {[%clk
0:09:45.6]} 8... Nb4 {[%clk 0:09:28]} 9. Qe4 {[%clk 0:09:31.9]} 9... f5 {[%clk
0:09:07.5]} 10. Qb1 {[%clk 0:09:29]} 10... g6 {[%clk 0:08:59.8]} 11. Nf3 {[%clk
0:08:42.5]} 11... Bg7 {[%clk 0:08:57.3]} 12. a3 {[%clk 0:08:35.2]} 12... Nc6
{[%clk 0:08:57.3]} 13. d3 {[%clk 0:08:36.1]} 13... Rb8 {[%clk 0:08:55.1]} 14.
Qc2 {[%clk 0:08:26.1]} 14... Nd4 {[%clk 0:08:34.7]} 15. Nxd4 {[%clk 0:08:23.5]}
15... cxd4 {[%clk 0:08:36.3]} 16. Nd5 {[%clk 0:08:20.8]} 16... Nxd5 {[%clk
0:08:35.4]} 17. Bxd5 {[%clk 0:08:22.7]} 17... Qa5+ {[%clk 0:08:36.1]} 18. b4
{[%clk 0:08:06.5]} 18... Qxd5 {[%clk 0:08:35.7]} 19. O-O {[%clk 0:08:08]} 19...
O-O {[%clk 0:08:31.1]} 20. Qc7 {[%clk 0:08:02.4]} 20... Rb7 {[%clk 0:08:31]} 21.
Qf4 {[%clk 0:07:56.5]} 21... e5 {[%clk 0:08:31]} 22. Qh4 {[%clk 0:07:57.1]}
22... Bc6 {[%clk 0:08:25.8]} 23. f3 {[%clk 0:07:57.6]} 23... Rbf7 {[%clk
0:08:13.4]} 24. Bg5 {[%clk 0:07:56.4]} 24... e4 {[%clk 0:08:03.5]} 25. Rac1
{[%clk 0:07:50.5]} 25... exd3 {[%clk 0:07:53.2]} 26. exd3 {[%clk 0:07:51]} 26...
Bb5 {[%clk 0:07:54.1]} 27. Rc5 {[%clk 0:07:43.8]} 27... Qb7 {[%clk 0:07:54.6]}
28. Qf4 {[%clk 0:07:06.1]} 28... Bxd3 {[%clk 0:07:54.3]} 29. Rf2 {[%clk
0:07:03.9]} 29... Bb5 {[%clk 0:07:47.6]} 30. h4 {[%clk 0:07:01.8]} 30... d3
{[%clk 0:07:43]} 31. h5 {[%clk 0:07:03]} 31... gxh5 {[%clk 0:07:42]} 32. Qh4
{[%clk 0:06:59.1]} 32... Qd7 {[%clk 0:07:40.1]} 33. Qxh5 {[%clk 0:06:56.1]}
33... Bd4 {[%clk 0:07:37.8]} 34. Bh6 {[%clk 0:06:47.8]} 34... Bxf2+ {[%clk
0:07:26.3]} 35. Kxf2 {[%clk 0:06:49.7]} 35... Qd4+ {[%clk 0:07:26.7]} 36. Kg2
{[%clk 0:06:42.3]} 36... d2 {[%clk 0:07:14.4]} 37. Qg5+ {[%clk 0:05:01.2]} 37...
Kh8 {[%clk 0:07:11.8]} 38. Qxd2 {[%clk 0:04:53.2]} 38... Qxd2+ {[%clk
0:07:11.5]} 39. Bxd2 {[%clk 0:04:55.1]} 39... a6 {[%clk 0:07:07.3]} 0-1

[Event "GrandPrix_30.05"]
[Site "Chess.com"]
[Date "2020.05.30"]
[Round "4"]
[White "levvard"]
[Black "hubertsmazak"]
[Result "1-0"]
[WhiteElo "2054"]
[BlackElo "2187"]
[TimeControl "600+2"]
[EndTime "9:43:40 PDT"]
[Termination "levvard won by resignation"]

1. e4 {[%clk 0:10:01.9]} 1... c5 {[%clk 0:09:59.5]} 2. d4 {[%clk 0:10:02.5]}
2... cxd4 {[%clk 0:10:01.4]} 3. c3 {[%clk 0:10:03.5]} 3... Nf6 {[%clk
0:09:51.8]} 4. e5 {[%clk 0:10:01]} 4... Nd5 {[%clk 0:09:52.9]} 5. Bc4 {[%clk
0:09:59.8]} 5... Nb6 {[%clk 0:09:49.5]} 6. Bxf7+ {[%clk 0:09:42.4]} 6... Kxf7
{[%clk 0:09:50.1]} 7. Nf3 {[%clk 0:09:35.4]} 7... Nc6 {[%clk 0:09:30.4]} 8. O-O
{[%clk 0:09:26.9]} 8... e6 {[%clk 0:09:24.8]} 9. Bg5 {[%clk 0:09:21.8]} 9... Be7
{[%clk 0:09:23.7]} 10. Bxe7 {[%clk 0:09:20.2]} 10... Qxe7 {[%clk 0:09:23.8]} 11.
cxd4 {[%clk 0:09:19.1]} 11... Rf8 {[%clk 0:09:04.8]} 12. Nc3 {[%clk 0:09:17.3]}
12... d5 {[%clk 0:09:02.5]} 13. Nb5 {[%clk 0:09:16]} 13... Kg8 {[%clk
0:08:54.7]} 14. b3 {[%clk 0:09:01.2]} 14... Bd7 {[%clk 0:08:52.2]} 15. a4 {[%clk
0:09:00.1]} 15... Be8 {[%clk 0:08:44]} 16. a5 {[%clk 0:08:56.5]} 16... Nd7
{[%clk 0:08:44.2]} 17. Ne1 {[%clk 0:08:42.8]} 17... Bg6 {[%clk 0:08:39.9]} 18.
Qd2 {[%clk 0:08:37.3]} 18... Rab8 {[%clk 0:08:11.8]} 19. f4 {[%clk 0:08:36.2]}
19... Qb4 {[%clk 0:08:08]} 20. Qxb4 {[%clk 0:08:32.8]} 20... Nxb4 {[%clk
0:08:09.9]} 21. Nxa7 {[%clk 0:08:22.9]} 21... Nd3 {[%clk 0:07:51]} 22. g3 {[%clk
0:08:20.2]} 22... Nxe1 {[%clk 0:07:46.1]} 23. Rfxe1 {[%clk 0:08:17.9]} 23... Bd3
{[%clk 0:07:38]} 24. Rec1 {[%clk 0:08:14]} 24... Ra8 {[%clk 0:07:30.3]} 25. Rc7
{[%clk 0:08:12.2]} 25... Rxa7 {[%clk 0:07:17.5]} 26. Rxd7 {[%clk 0:08:11.5]}
26... Bb5 {[%clk 0:07:11.8]} 27. Re7 {[%clk 0:08:10.5]} 27... Re8 {[%clk
0:07:08.7]} 28. Rc7 {[%clk 0:08:08.4]} 28... Kf8 {[%clk 0:07:04.2]} 29. b4
{[%clk 0:08:07]} 29... Re7 {[%clk 0:07:04.1]} 30. Rc8+ {[%clk 0:08:06.3]} 30...
Kf7 {[%clk 0:07:00.2]} 31. Kg2 {[%clk 0:08:04.3]} 31... Ra6 {[%clk 0:06:59.1]}
32. g4 {[%clk 0:08:02.3]} 32... Rc6 {[%clk 0:06:59.7]} 33. Rxc6 {[%clk
0:08:01.3]} 33... Bxc6 {[%clk 0:07:00.2]} 34. Rc1 {[%clk 0:07:58.4]} 34... Bb5
{[%clk 0:06:49]} 35. Kf3 {[%clk 0:07:57.5]} 35... Bc4 {[%clk 0:06:49.3]} 36. f5
{[%clk 0:07:55.5]} 36... exf5 {[%clk 0:06:07.9]} 37. gxf5 {[%clk 0:07:57.4]}
37... g6 {[%clk 0:06:08.9]} 38. f6 {[%clk 0:07:55.5]} 38... Re8 {[%clk
0:06:08.3]} 39. h4 {[%clk 0:07:54]} 39... Ke6 {[%clk 0:05:57.7]} 40. Kf4 {[%clk
0:07:53.4]} 40... h6 {[%clk 0:05:51.2]} 41. Rc3 {[%clk 0:07:51.3]} 41... Rb8
{[%clk 0:05:49.4]} 42. Rg3 {[%clk 0:07:50.1]} 42... Kf7 {[%clk 0:05:48.9]} 43.
h5 {[%clk 0:07:48.7]} 43... g5+ {[%clk 0:05:48]} 44. Kf5 {[%clk 0:07:48.4]}
44... Re8 {[%clk 0:05:48.4]} 45. Rc3 {[%clk 0:07:33.1]} 45... g4 {[%clk
0:05:29.5]} 46. b5 {[%clk 0:07:20.4]} 46... Rg8 {[%clk 0:04:44.9]} 47. e6+
{[%clk 0:07:13.5]} 47... Kf8 {[%clk 0:04:46.3]} 48. a6 {[%clk 0:07:10.8]} 1-0

[Event "GrandPrix_30.05"]
[Site "Chess.com"]
[Date "2020.05.30"]
[Round "4"]
[White "Poghosyan_Suren"]
[Black "Sporty207"]
[Result "1-0"]
[WhiteElo "2146"]
[BlackElo "2207"]
[TimeControl "600+2"]
[EndTime "9:43:48 PDT"]
[Termination "Poghosyan_Suren won by resignation"]

1. d4 {[%clk 0:10:01.3]} 1... d5 {[%clk 0:10:00.9]} 2. c4 {[%clk 0:10:01.7]}
2... e6 {[%clk 0:10:01.8]} 3. Nc3 {[%clk 0:10:02.3]} 3... c6 {[%clk 0:10:01]} 4.
e4 {[%clk 0:09:40]} 4... dxe4 {[%clk 0:09:58.3]} 5. Nxe4 {[%clk 0:09:40.8]} 5...
Bb4+ {[%clk 0:09:59.9]} 6. Nc3 {[%clk 0:09:41.2]} 6... Nf6 {[%clk 0:09:49.3]} 7.
Nf3 {[%clk 0:09:39.6]} 7... O-O {[%clk 0:09:46.5]} 8. a3 {[%clk 0:09:26.8]} 8...
Be7 {[%clk 0:09:43.7]} 9. Be3 {[%clk 0:09:23.9]} 9... Nbd7 {[%clk 0:09:23.7]}
10. Bd3 {[%clk 0:08:57.1]} 10... b6 {[%clk 0:09:17.4]} 11. O-O {[%clk
0:08:18.3]} 11... Bb7 {[%clk 0:09:16.9]} 12. Re1 {[%clk 0:07:59]} 12... c5
{[%clk 0:09:11.8]} 13. d5 {[%clk 0:07:59.6]} 13... exd5 {[%clk 0:08:53.2]} 14.
cxd5 {[%clk 0:08:01.5]} 14... Qc7 {[%clk 0:08:42.3]} 15. Nb5 {[%clk 0:07:15.3]}
15... Qb8 {[%clk 0:08:35.3]} 16. d6 {[%clk 0:07:16.1]} 16... Bxf3 {[%clk
0:08:26.5]} 17. gxf3 {[%clk 0:07:10.5]} 17... Bd8 {[%clk 0:08:10.8]} 18. Bf4
{[%clk 0:06:39]} 18... Qb7 {[%clk 0:07:51.5]} 19. Be4 {[%clk 0:06:27.9]} 19...
Nxe4 {[%clk 0:07:49.8]} 20. fxe4 {[%clk 0:06:29.8]} 20... g5 {[%clk 0:07:42.2]}
21. Bg3 {[%clk 0:04:40]} 21... a6 {[%clk 0:07:03.2]} 22. Nc7 {[%clk 0:04:07]}
22... Rc8 {[%clk 0:06:49.7]} 23. e5 {[%clk 0:04:07.5]} 23... Bxc7 {[%clk
0:06:28.6]} 24. dxc7 {[%clk 0:04:06.2]} 24... Rfe8 {[%clk 0:06:22.4]} 25. Qxd7
{[%clk 0:04:05.5]} 25... Qxc7 {[%clk 0:06:17.7]} 26. e6 {[%clk 0:03:56]} 26...
Qxd7 {[%clk 0:06:12.2]} 27. exd7 {[%clk 0:03:56.7]} 27... Rxe1+ {[%clk 0:06:13]}
28. Rxe1 {[%clk 0:03:58.6]} 28... Rd8 {[%clk 0:06:13.5]} 29. Re8+ {[%clk
0:03:58.9]} 1-0

[Event "GrandPrix_30.05"]
[Site "Chess.com"]
[Date "2020.05.30"]
[Round "4"]
[White "JonahWillow"]
[Black "bratkoo"]
[Result "0-1"]
[WhiteElo "2218"]
[BlackElo "2200"]
[TimeControl "600+2"]
[EndTime "9:43:57 PDT"]
[Termination "bratkoo won by resignation"]

1. e4 {[%clk 0:10:01.9]} 1... g6 {[%clk 0:09:54.9]} 2. d4 {[%clk 0:10:02.6]}
2... Bg7 {[%clk 0:09:56]} 3. Nc3 {[%clk 0:10:03.1]} 3... d6 {[%clk 0:09:57.3]}
4. f4 {[%clk 0:10:01.3]} 4... a6 {[%clk 0:09:58]} 5. Nf3 {[%clk 0:10:01.1]} 5...
Nd7 {[%clk 0:09:52.6]} 6. Bd3 {[%clk 0:10:00.9]} 6... b5 {[%clk 0:09:53.7]} 7.
Ne2 {[%clk 0:09:53.6]} 7... c5 {[%clk 0:09:53.2]} 8. c3 {[%clk 0:09:54.5]} 8...
Bb7 {[%clk 0:09:53.5]} 9. O-O {[%clk 0:09:48.3]} 9... e6 {[%clk 0:09:54.2]} 10.
Bc2 {[%clk 0:09:24.3]} 10... Ne7 {[%clk 0:09:51.4]} 11. Be3 {[%clk 0:09:22.5]}
11... Qc7 {[%clk 0:09:50.3]} 12. Qd2 {[%clk 0:08:42.3]} 12... Nb6 {[%clk
0:09:48.6]} 13. b3 {[%clk 0:08:40.3]} 13... O-O {[%clk 0:09:35.1]} 14. Rac1
{[%clk 0:08:24.9]} 14... Rad8 {[%clk 0:09:31.7]} 15. Bb1 {[%clk 0:08:21.6]}
15... f5 {[%clk 0:09:17.2]} 16. Ng5 {[%clk 0:07:55.2]} 16... Qc8 {[%clk
0:09:18.2]} 17. Rfd1 {[%clk 0:06:28.1]} 17... h6 {[%clk 0:09:14.8]} 18. dxc5
{[%clk 0:06:24.2]} 18... dxc5 {[%clk 0:09:08]} 19. Qxd8 {[%clk 0:02:37.1]} 19...
Rxd8 {[%clk 0:09:09.9]} 20. Rxd8+ {[%clk 0:02:37.8]} 20... Qxd8 {[%clk
0:09:09.9]} 21. Nxe6 {[%clk 0:02:39.7]} 21... Qd6 {[%clk 0:09:08.5]} 22. Nxc5
{[%clk 0:02:38.4]} 22... Bxe4 {[%clk 0:09:03]} 23. Nxe4 {[%clk 0:02:28.7]} 23...
fxe4 {[%clk 0:09:03.6]} 24. Bxe4 {[%clk 0:02:30.6]} 24... Nbd5 {[%clk
0:08:53.3]} 25. Bd2 {[%clk 0:01:21.5]} 25... Nf6 {[%clk 0:08:39.7]} 0-1